fUST/lending_fUST_20240805
["ID","MTS","AMOUNT","RATE_DAILY","PERIOD"]
[334190253,1722820248645,-5460.0,0.00021012,2]
[334190256,1722820248660,-5537.27945216,0.00021012,2]
[334190258,1722820248672,-3000.0,0.0002102,2]
[334190260,1722820248684,-3000.0,0.0002103,2]
[334190262,1722820248694,-3000.0,0.0002104,2]
[334190264,1722820248706,-290.3896961,0.00021048,2]
[334190266,1722820248717,-180.4790292,0.00021048,2]
[334190267,1722820248735,-258.81514474,0.00021048,2]
[334190268,1722820248746,-3000.0,0.0002105,2]
[334190269,1722820248757,-3000.0,0.0002106,2]
[334190270,1722820248768,-3000.0,0.0002107,2]
[334190271,1722820248780,-3000.0,0.0002108,2]
[334190272,1722820248792,-3000.0,0.0002109,2]
[334190273,1722820248804,-3000.0,0.000211,2]
[334190274,1722820248816,-375.072416,0.000211,2]
[334190275,1722820248828,-375.072416,0.000211,2]
[334190276,1722820248839,-151.0,0.000211,2]
[334190277,1722820248850,-151.0,0.000211,2]
[334190278,1722820248862,-277.029913,0.000211,2]
[334190279,1722820248874,-3000.0,0.0002111,2]
[334190280,1722820248885,-151.0,0.0002111,2]
[334190281,1722820248897,-3000.0,0.0002112,2]
[334190282,1722820248908,-3000.0,0.0002113,2]
[334190283,1722820248918,-3000.0,0.0002114,2]
[334190284,1722820248929,-3000.0,0.0002115,2]
[334190286,1722820248943,-3000.0,0.0002116,2]
[334190287,1722820248955,-3000.0,0.0002117,2]
[334190289,1722820248966,-3000.0,0.0002118,2]
[334190291,1722820248977,-3000.0,0.0002119,2]
[334190292,1722820248987,-503.36894553,0.000212,2]
[334190294,1722820248999,-3000.0,0.000212,2]
[334190296,1722820249010,-3000.0,0.0002121,2]
[334190298,1722820249021,-3000.0,0.0002122,2]
[334190300,1722820249033,-200.0,0.00021226,2]
[334190301,1722820249045,-3000.0,0.0002123,2]
[334190303,1722820249057,-3000.0,0.0002124,2]
[334190305,1722820249068,-3000.0,0.0002125,2]
[334190307,1722820249097,-3000.0,0.0002126,2]
[334190309,1722820249110,-3000.0,0.0002127,2]
[334190311,1722820249121,-3000.0,0.0002128,2]
[334190314,1722820249132,-3000.0,0.0002129,2]
[334190316,1722820249148,-3000.0,0.000213,2]
[334190318,1722820249158,-3000.0,0.0002131,2]
[334190320,1722820249169,-3000.0,0.0002132,2]
[334190322,1722820249181,-3000.0,0.0002133,2]
[334190324,1722820249192,-3000.0,0.0002134,2]
[334190326,1722820249204,-400.0,0.00021342,2]
[334190328,1722820249216,-3000.0,0.0002135,2]
[334190330,1722820249228,-1949.49298725,0.0002136,2]
[334190347,1722820249636,-151.0,0.00015708,2]
[334190349,1722820249647,-151.0,0.00015709,2]
[334190351,1722820249659,-360.48696743,0.00015712,2]
[334190353,1722820249680,-182.59336954,0.00015712,2]
[334190355,1722820249691,-42338.60479892,0.00015744,2]
[334190356,1722820249703,-3087.44790236,0.00015751,2]
[334190357,1722820249715,-151.0,0.00016428,2]
[334190358,1722820249727,-154.79103211,0.00017019,2]
[334190359,1722820249738,-500.0,0.00018587,7]
[334190360,1722820249750,-151.0,0.0001879,2]
[334190361,1722820249761,-1050.50701275,0.0002136,2]
[334190362,1722820249773,-998.60842532,0.0002137,2]
[334190363,1722820250091,-573.10477979,9.999e-05,2]
[334190364,1722820250103,-154.79103211,9.999e-05,2]
[334190365,1722820250114,-154.79103211,0.0001571,2]
[334190366,1722820250126,-266.6760068,0.00015712,2]
[334190367,1722820250140,-2001.39157468,0.0002137,2]
[334190368,1722820250166,-3000.0,0.0002138,2]
[334190369,1722820250178,-3000.0,0.0002139,2]
[334190370,1722820250189,-1617.24557451,0.000214,2]
[334190372,1722820250209,-452.45148543,0.000214,2]
[334190374,1722820250224,-609.51885624,0.000214,2]
[334190376,1722820250239,-320.78408382,0.000214,2]
[334190378,1722820250251,-2589.68000335,0.0002141,2]
[334190380,1722820250271,-410.31999665,0.0002141,2]
[334190382,1722820250282,-2082.18000335,0.0002142,2]
[334190387,1722820250329,-154.79103211,0.00017389,2]
[334190388,1722820250340,-110.22618421,0.0002142,2]
[334190389,1722820250357,-807.59381244,0.0002142,2]
[334190390,1722820250370,-1312.14,0.0002142,2]
[334190391,1722820250381,-640.26618756,0.0002142,2]
[334190392,1722820250395,-175.95369124,0.0002142,2]
[334190393,1722820250407,-155.06546205,0.0002142,2]
[334190394,1722820250419,-532.14086008,0.0002142,2]
[334190395,1722820250432,-3000.0,0.0002143,2]
[334190396,1722820250443,-3000.0,0.0002144,2]
[334190397,1722820250455,-3000.0,0.0002145,2]
[334190398,1722820250466,-3000.0,0.0002146,2]
[334190399,1722820250477,-3881.387363,0.0002147,2]
[334190400,1722820250488,-375.072416,0.0002147,2]
[334190401,1722820250507,-375.072416,0.0002147,2]
[334190402,1722820250523,-151.0,0.0002147,2]
[334190403,1722820250535,-151.0,0.0002147,2]
[334190404,1722820250546,-70589.77544922,0.00021484,3]
[334190405,1722820250558,-151.0,0.00021532,2]
[334190406,1722820250569,-155.45895157,0.00021532,2]
[334190407,1722820250580,-266.79967101,0.00021532,2]
[334190408,1722820250591,-154.79103211,0.00021542,2]
[334190409,1722820250602,-300.99621399,0.00021542,2]
[334190410,1722820250613,-154.79103211,0.00021589,2]
[334190411,1722820250629,-356.45346079,0.00021589,2]
[334190412,1722820250641,-558.57445577,0.00021599,2]
[334190413,1722820250653,-153.54720157,0.000216,2]
[334190414,1722820250679,-309.40901971,0.00021642,2]
[334190415,1722820250691,-154.79103211,0.00021805,2]
[334190416,1722820250703,-157.80579925,0.00021805,2]
[334190417,1722820250714,-154.80649189,0.00021805,2]
[334190418,1722820250728,-283.91746348,0.00021906,2]
[334190419,1722820250740,-154.79103211,0.00021906,2]
[334190420,1722820250751,-154.79103211,0.00021906,2]
[334190421,1722820250763,-174.57130593,0.00021916,2]
[334190422,1722820250775,-154.79103211,0.00021916,2]
[334190423,1722820250786,-159.83522761,0.00021916,2]
[334190424,1722820250796,-160.0,0.00021918,2]
[334190425,1722820250807,-174.32602738,0.00021918,2]
[334190426,1722820250818,-161.5873685,0.00021918,2]
[334190427,1722820250832,-160.0,0.00021999,2]
[334190428,1722820250844,-12057.11,0.00022,14]
[334190429,1722820250855,-122468.85,0.00022,14]
[334190430,1722820250867,-3931.8,0.00022,7]
[334190431,1722820250878,-163.66453669,0.00022,2]
[334190432,1722820250888,-2062.27875025,0.00022,2]
[334190433,1722820250899,-554.6824819,0.00022,2]
[334190434,1722820250910,-5000.0,0.00022,3]
[334190435,1722820250922,-262.35924226,0.00022,2]
[334190436,1722820250936,-375.072416,0.00022,7]
[334190437,1722820250947,-375.07242,0.00022,7]
[334190438,1722820250959,-151.0,0.00022,7]
[334190439,1722820250970,-158.38349,0.00022,7]
[334190440,1722820250982,-151.0,0.00022,7]
[334190441,1722820250993,-150.0,0.0002201,2]
[334190442,1722820251004,-1411.0,0.0002201,2]
[334190443,1722820251014,-3045.40701503,0.0002217,2]
[334190444,1722820251026,-1000.0,0.000222,2]
[334190445,1722820251039,-1383.0,0.00022278,8]
[334190446,1722820251050,-150.0,0.00022444,2]
[334190447,1722820251060,-1272.97304654,0.00022461,2]
[334190448,1722820251071,-28210.71338766,0.00022484,3]
[334190449,1722820251085,-48678.32109409,0.00022484,3]
[334190450,1722820251095,-590.6322226,0.00022493,2]
[334190451,1722820251106,-153.0,0.00022493,2]
[334190452,1722820251116,-907.85,0.000225,31]
[334190453,1722820251128,-472.31660212,0.000225,31]
[334190454,1722820251147,-381.5492,0.000225,31]
[334190455,1722820251161,-53.98419788,0.000225,31]
[334190456,1722820251172,-907.85,0.000225,31]
[334190457,1722820251183,-907.85,0.000225,31]
[334190458,1722820251194,-907.85,0.000225,31]
[334190459,1722820251220,-907.85,0.000225,31]
[334190461,1722820251231,-121.97076226,0.000225,31]
[334190463,1722820251245,-785.87923774,0.000225,31]
[334190465,1722820251258,-169.12076226,0.000225,31]
[334190477,1722820251460,-278.73879,0.00015708,2]
[334190479,1722820251471,-278.73879,0.00015709,2]
[334190481,1722820251482,-191.433445,0.00015771,2]
[334190483,1722820251497,-278.73879,0.00016428,2]
[334190485,1722820251508,-356.45346079,0.00021589,2]
[334190487,1722820251520,-738.72923774,0.000225,31]
[334190490,1722820251532,-907.85,0.000225,31]
[334190492,1722820251543,-907.85,0.000225,31]
[334190494,1722820251554,-907.85,0.000225,31]
[334190495,1722820251565,-907.85,0.000225,31]
[334190497,1722820251576,-907.85,0.000225,31]
[334190499,1722820251587,-145.06932922,0.000225,31]
[334190501,1722820251601,-762.78067078,0.000225,31]
[334190503,1722820251612,-907.85,0.000225,31]
[334190505,1722820251624,-907.85,0.000225,31]
[334190507,1722820251635,-907.85,0.000225,31]
[334190509,1722820251647,-907.85,0.000225,31]
[334190511,1722820251659,-907.85,0.000225,31]
[334190513,1722820251671,-907.85,0.000225,31]
[334190515,1722820251683,-239.0610109,0.00023,2]
[334190517,1722820251693,-1096.05831836,0.00023,2]
[334190519,1722820251706,-2199.99999999,0.00023,2]
[334190521,1722820251728,-278.73879,0.0001879,2]
[334190522,1722820251754,-1011.26121,0.00023,2]
[334190523,1722820251767,-2677.75,0.00023,2]
[334190899,1722820273681,150.5,0.0002499,120]
[334190900,1722820274835,150.5,0.0002498,120]
[334190901,1722820275223,246.96,0.0002497,120]
[334190902,1722820276691,467.89592226,0.000269,120]
[334190949,1722820943380,363.0,0.00027,120]
[334190950,1722820950724,200.0,0.0002677,120]
[334190951,1722820962722,11185.58128708,0.000269,120]
[334190952,1722820978749,1018.39,0.00027,120]
[334191109,1722821432766,-272.05,9.899e-05,2]
[334191111,1722821432779,-269.81583379,9.899e-05,2]
[334191114,1722821432791,-156.08286507,9.899e-05,2]
[334191116,1722821432801,-543.08033697,9.999e-05,2]
[334191118,1722821432811,-154.86836189,9.999e-05,2]
[334191120,1722821432820,-264.41843607,0.00010185,2]
[334191122,1722821432832,-1680.64274615,0.00010185,2]
[334191124,1722821432843,-2039.70558918,0.00010185,2]
[334191126,1722821432853,-167.46293,0.00010733,2]
[334191128,1722821432863,-254.051696,0.000108,2]
[334191130,1722821432873,-167.46293,0.00010813,2]
[334191132,1722821432883,-167.46293,0.00010893,2]
[334191134,1722821432894,-837.54,0.00010959,2]
[334191136,1722821432904,-167.46293,0.00010972,2]
[334191138,1722821432914,-167.46293,0.00011052,2]
[334191139,1722821432929,-167.46293,0.00011132,2]
[334191141,1722821432939,-167.46293,0.00011212,2]
[334191143,1722821432949,-167.46293,0.00011292,2]
[334191145,1722821432959,-300.0,0.00011404,2]
[334191147,1722821432969,-300.0,0.00011404,2]
[334191148,1722821432979,-13666.81300836,0.00011405,2]
[334191150,1722821432992,-2528.08543767,0.00011405,2]
[334191152,1722821433004,-2023.12661523,0.00011405,2]
[334191154,1722821433016,-5432.0,0.00011405,2]
[334191217,1722821438854,-273.37336231,9.9e-05,2]
[334191218,1722821438864,-270.18663769,0.00011405,2]
[334191219,1722821439732,-979.78830105,0.00011405,2]
[334191222,1722821439746,-2379.1007725,0.0001169,2]
[334191224,1722821439759,-420.0,0.00012527,2]
[334191226,1722821439771,-420.0,0.00012544,2]
[334191228,1722821439782,-12413.76271591,0.00013594,2]
[334191252,1722821440144,-1050.82,0.00013594,2]
[334191254,1722821440156,-5380.0,0.00013594,2]
[334191256,1722821440168,-11348.48938868,0.00013594,2]
[334191258,1722821440178,-500.0,0.00013698,2]
[334191260,1722821440192,-174.68877284,0.00013698,2]
[334191261,1722821440201,-340.3649154,0.00013698,2]
[334191263,1722821440211,-3000.0,0.00013699,2]
[334191265,1722821440220,-290.5656709,0.00013699,2]
[334191267,1722821440230,-541.26580199,0.00013699,2]
[334191268,1722821440240,-587.0,0.0001376,2]
[334191270,1722821440250,-587.0,0.00013799,2]
[334191272,1722821440260,-3882.72668014,0.000139,2]
[334191274,1722821440269,-1764.62834979,0.00013982,2]
[334191276,1722821440280,-169.146938,0.00014247,2]
[334191277,1722821440290,-451.195121,0.00014247,2]
[334191279,1722821440299,-8326.76198915,0.000145,2]
[334191281,1722821440310,-200.0,0.00014795,2]
[334191283,1722821440320,-2003.35,0.000149,2]
[334191285,1722821440330,-823.0,0.00015114,2]
[334191287,1722821440340,-469.0,0.00015179,2]
[334191289,1722821440350,-150.112233,0.000154,2]
[334191291,1722821440360,-2137.28,0.00015597,2]
[334191293,1722821440370,-2137.28,0.00015597,2]
[334191295,1722821440380,-2137.28,0.00015597,2]
[334191297,1722821440390,-293.610344,0.00015612,2]
[334191299,1722821440400,-266.6760068,0.00015712,2]
[334191302,1722821440410,-156.012053,0.00015771,2]
[334191305,1722821440420,-157.559926,0.00015771,2]
[334191308,1722821440433,-764.041092,0.00015771,2]
[334191310,1722821440444,-629.255722,0.00015771,2]
[334191313,1722821440454,-764.041092,0.00015968,2]
[334191314,1722821440463,-629.255722,0.00015968,2]
[334191316,1722821440473,-764.041092,0.00016165,2]
[334191319,1722821440482,-629.255722,0.00016165,2]
[334191321,1722821440491,-2137.28,0.00016346,2]
[334191323,1722821440501,-764.041092,0.00016362,2]
[334191325,1722821440510,-629.255722,0.00016362,2]
[334191327,1722821440520,-764.041092,0.00016559,2]
[334191328,1722821440530,-629.255722,0.00016559,2]
[334191330,1722821440539,-317.0,0.00016602,2]
[334191332,1722821440549,-293.61034399,0.00016684,2]
[334191334,1722821440559,-506.0,0.00016749,2]
[334191336,1722821440569,-630.075,0.00016749,2]
[334191338,1722821440579,-150.112233,0.000171,2]
[334191340,1722821440589,-7870.78160382,0.0001774,2]
[334191342,1722821440599,-293.61034399,0.00017756,2]
[334191344,1722821440609,-154.86836189,0.00018,2]
[334191346,1722821440619,-7693.93353683,0.00018447,2]
[334191348,1722821440630,-400.92,0.000185,31]
[334191350,1722821440641,-400.92,0.000185,31]
[334191352,1722821440653,-400.92,0.000185,31]
[334191354,1722821440663,-400.92,0.000185,31]
[334191356,1722821440675,-400.92,0.000185,31]
[334191358,1722821440693,-400.92,0.000185,31]
[334191360,1722821440703,-400.92,0.000185,31]
[334191361,1722821440713,-400.92,0.000185,31]
[334191363,1722821440724,-400.92,0.000185,31]
[334191365,1722821440735,-400.92,0.000185,31]
[334191367,1722821440745,-186.43973924,0.000185,31]
[334191418,1722821441383,-214.48026076,0.000185,31]
[334191420,1722821441393,-45.40070596,0.000185,31]
[334191422,1722821441405,-355.51929404,0.000185,31]
[334191423,1722821441415,-400.92,0.000185,31]
[334191425,1722821441424,-400.92,0.000185,31]
[334191427,1722821441440,-400.92,0.000185,31]
[334191429,1722821441449,-400.92,0.000185,31]
[334191430,1722821441458,-400.92,0.000185,31]
[334191432,1722821441468,-400.92,0.000185,31]
[334191434,1722821441477,-400.92,0.000185,31]
[334191436,1722821441486,-400.92,0.000185,31]
[334191437,1722821441496,-150.112233,0.000188,2]
[334191439,1722821441505,-293.61034399,0.00018827,2]
[334191441,1722821441515,-1714.64490922,0.00018845,2]
[334191443,1722821441525,-209.86612614,0.00018988,2]
[334191445,1722821441536,-181.30097861,0.00018988,2]
[334191446,1722821441546,-160.6861834,0.00018988,2]
[334191448,1722821441555,-409.78908459,0.00018988,2]
[334191450,1722821441565,-500.0,0.00018988,2]
[334191452,1722821441575,-500.0,0.00018988,2]
[334191453,1722821441585,-500.0,0.00018988,2]
[334191455,1722821441595,-500.0,0.00018988,2]
[334191457,1722821441605,-500.0,0.00018988,2]
[334191458,1722821441615,-174.09040137,0.00018988,2]
[334191460,1722821441625,-500.0,0.00018988,2]
[334191462,1722821441635,-500.0,0.00018988,2]
[334191464,1722821441647,-267.12739163,0.00018989,2]
[334191466,1722821441657,-35010.17630372,0.00018989,2]
[334191468,1722821441667,-250.0,0.00019041,2]
[334191470,1722821441681,-154.82195475,0.00019102,2]
[334191471,1722821441695,-1162.72829906,0.00019155,2]
[334191473,1722821441705,-1523.85938179,0.00019167,2]
[334191477,1722821441746,-206.955942,0.00019167,2]
[334191480,1722821441762,-263.79,0.00019167,2]
[334191482,1722821441774,-720.78923226,0.00019167,2]
[334191483,1722821441787,-5155.38704777,0.00019167,2]
[334191485,1722821441797,-9641.65829969,0.00019167,2]
[334191487,1722821441808,-2536.22564299,0.00019167,2]
[334191489,1722821441817,-7774.59967491,0.00019167,2]
[334191491,1722821441828,-1794.47294319,0.00019167,2]
[334191492,1722821441838,-3087.44790236,0.00019167,2]
[334191494,1722821441847,-2162.43676373,0.00019177,2]
[334191496,1722821441859,-250.35702584,0.00019177,2]
[334191498,1722821441869,-42341.71391136,0.00019177,2]
[334191500,1722821441880,-5880.88262027,0.00019209,2]
[334191502,1722821441890,-1108.76834352,0.00019256,2]
[334191503,1722821441901,-7001.07154863,0.00019256,2]
[334191512,1722821441992,-178.30906711,0.00019256,2]
[334191515,1722821442019,-300.05141952,0.00019256,2]
[334191517,1722821442029,-1500.0,0.00019256,2]
[334191518,1722821442039,-253.57473726,0.00019256,2]
[334191520,1722821442049,-154.82195475,0.00019256,2]
[334191522,1722821442059,-240.80307792,0.00019256,2]
[334191524,1722821442070,-390.45855827,0.00019256,2]
[334191820,1722821444047,-500.0,0.00018988,2]
[334191823,1722821444057,-277.18370616,0.00019167,2]
[334191826,1722821444066,-1601.04630744,0.00019256,2]
[334191829,1722821444076,-2138.98947464,0.00019256,2]
[334191831,1722821444086,-240.80307792,0.00019256,2]
[334191834,1722821444095,-493.32772798,0.00019256,2]
[334191837,1722821444105,-309.6439095,0.00019256,2]
[334191840,1722821444115,-156.61103376,0.00019256,2]
[334191842,1722821444125,-1500.0,0.00019256,2]
[334191845,1722821444134,-1382.92970052,0.00019256,2]
[334191847,1722821444144,-1093.49907573,0.00019256,2]
[334191849,1722821444155,-7870.78160382,0.00019441,2]
[334191851,1722821444165,-2278.01854997,0.00019451,3]
[334191853,1722821444174,-807.83941195,0.00019451,2]
[334191855,1722821444189,-1060.99846949,0.00019451,2]
[334191857,1722821444199,-1763.34953629,0.00019451,2]
[334191858,1722821444208,-298.08370942,0.00019451,2]
[334191860,1722821444217,-600.8534117,0.00019451,2]
[334191862,1722821444227,-244.84557874,0.00019451,2]
[334191864,1722821444237,-154.82195475,0.00019451,2]
[334191866,1722821444246,-154.82195475,0.00019451,2]
[334191867,1722821444256,-163.06705816,0.00019451,2]
[334191869,1722821444265,-779.72563843,0.00019451,2]
[334191871,1722821444275,-523.10973974,0.00019451,2]
[334191873,1722821444284,-244.86573246,0.00019451,2]
[334191875,1722821444294,-156.74439841,0.00019451,2]
[334191876,1722821444304,-287.79610663,0.00019451,2]
[334191878,1722821444314,-194.58009581,0.00019451,2]
[334191880,1722821444323,-156.83214814,0.00019451,2]
[334191882,1722821444333,-5880.88262027,0.00019461,2]
[334191884,1722821444343,-15741.5632076,0.00019468,2]
[334191885,1722821444353,-1610.56614984,0.00019477,2]
[334191887,1722821444363,-156.8188046,0.00019477,2]
[334191889,1722821444373,-342.05014288,0.00019477,2]
[334191891,1722821444384,-2124.35920477,0.00019477,2]
[334191894,1722821444394,-347.77955978,0.00019477,4]
[334191896,1722821444403,-154.82195475,0.00019477,2]
[334191898,1722821444414,-342.05014288,0.00019477,2]
[334191900,1722821444423,-155.0861325,0.00019477,2]
[334191904,1722821444439,-845.54644341,0.00019477,2]
[334191907,1722821444449,-209.88574515,0.00019477,2]
[334191911,1722821444458,-243.08116202,0.00019477,2]
[334191915,1722821444468,-154.82195475,0.00019477,2]
[334191919,1722821444477,-319.75385853,0.00019477,2]
[334191922,1722821444487,-154.82195475,0.00019477,2]
[334191926,1722821444497,-568.61673654,0.00019477,2]
[334191927,1722821444506,-160.0,0.00019508,3]
[334191928,1722821444515,-519.59956575,0.00019547,2]
[334191929,1722821444524,-727.52933543,0.00019547,2]
[334191930,1722821444533,-573.10477979,0.00019547,2]
[334191931,1722821444543,-426.9441554,0.00019547,2]
[334191932,1722821444553,-154.82195475,0.00019547,2]
[334191933,1722821444563,-154.82195475,0.00019547,2]
[334191934,1722821444572,-403.74175046,0.00019547,2]
[334191935,1722821444582,-154.82195475,0.00019547,2]
[334191936,1722821444592,-201.4758121,0.00019547,2]
[334191937,1722821444602,-20759.5327798,0.00019547,2]
[334191938,1722821444611,-286.64112626,0.00019547,2]
[334191939,1722821444621,-153.9111627,0.000196,2]
[334191940,1722821444631,-7870.78160382,0.00019739,2]
[334191941,1722821444641,-479.047,0.00019749,2]
[334191942,1722821444655,-5880.88262027,0.00019868,2]
[334191943,1722821444665,-293.61034399,0.00019899,2]
[334191944,1722821444675,-7870.78160382,0.00019989,2]
[334191945,1722821444689,-1438.19153297,0.00019999,2]
[334191946,1722821444699,-205.1880395,0.00019999,2]
[334191947,1722821444709,-188.2335741,0.00019999,2]
[334191948,1722821444719,-154.82195475,0.00019999,2]
[334191949,1722821444729,-1438.19153297,0.00019999,2]
[334191950,1722821444739,-209.18351946,0.00019999,2]
[334191951,1722821444749,-269.66609186,0.00019999,2]
[334191952,1722821444760,-196.46943428,0.00019999,2]
[334191953,1722821444770,-269.66609186,0.00019999,2]
[334191954,1722821444779,-154.82195475,0.00019999,2]
[334191955,1722821444789,-21235.45325014,0.0002,5]
[334191956,1722821444798,-540.18364677,0.0002,2]
[334191957,1722821444808,-3133.58847844,0.0002,2]
[334191958,1722821444817,-157.32029987,0.0002,2]
[334191959,1722821444826,-1016.05104204,0.0002,2]
[334191960,1722821444836,-309.49119711,0.0002,2]
[334191961,1722821444845,-435.0,0.0002,2]
[334191962,1722821444854,-1363.32005026,0.0002,2]
[334191963,1722821444863,-360.10986346,0.0002,2]
[334191964,1722821444872,-151.0,0.00020017,2]
[334191965,1722821444882,-151.0,0.00020017,2]
[334191966,1722821444891,-5880.88262027,0.00020202,2]
[334191967,1722821444901,-174.52933502,0.0002028,2]
[334191968,1722821444910,-160.1642143,0.0002028,2]
[334191969,1722821444919,-664.23911189,0.0002028,2]
[334191970,1722821444929,-165.53506923,0.0002028,2]
[334191971,1722821444943,-154.82195475,0.0002028,2]
[334191972,1722821444952,-183.10678503,0.0002028,2]
[334191973,1722821444962,-5880.88262027,0.0002039,2]
[334191974,1722821444971,-2137.28,0.00020499,2]
[334191975,1722821444980,-400.92,0.000205,31]
[334191976,1722821444990,-400.92,0.000205,31]
[334191977,1722821445000,-400.92,0.000205,31]
[334191978,1722821445010,-400.92,0.000205,31]
[334191979,1722821445019,-400.92,0.000205,31]
[334191980,1722821445028,-400.92,0.000205,31]
[334191981,1722821445037,-400.92,0.000205,31]
[334191982,1722821445047,-400.92,0.000205,31]
[334191983,1722821445057,-400.92,0.000205,31]
[334191984,1722821445066,-400.92,0.000205,31]
[334191985,1722821445076,-400.92,0.000205,31]
[334191986,1722821445085,-400.92,0.000205,31]
[334191987,1722821445094,-400.92,0.000205,31]
[334191988,1722821445104,-400.92,0.000205,31]
[334191990,1722821445114,-400.92,0.000205,31]
[334191991,1722821445123,-400.92,0.000205,31]
[334191992,1722821445133,-400.92,0.000205,31]
[334191994,1722821445142,-400.92,0.000205,31]
[334191995,1722821445152,-400.92,0.000205,31]
[334191996,1722821445162,-400.92,0.000205,31]
[334191998,1722821445171,-160.0,0.0002052,4]
[334191999,1722821445181,-312.49400813,0.0002052,5]
[334192001,1722821445196,-7870.78160382,0.00020529,2]
[334192003,1722821445206,-150.112233,0.000206,4]
[334192005,1722821445217,-151.0,0.00020614,2]
[334192007,1722821445226,-151.0,0.00020614,2]
[334192009,1722821445236,-5880.88262027,0.00020669,2]
[334192011,1722821445246,-451.195121,0.00020707,2]
[334192013,1722821445256,-533.92328189,0.00020721,2]
[334192015,1722821445266,-154.82195475,0.00020721,2]
[334192017,1722821445276,-5880.88262027,0.00020909,2]
[334192019,1722821445286,-506.48190828,0.00020999,2]
[334192021,1722821445296,-506.48190828,0.00020999,2]
[334192023,1722821445306,-155.96369074,0.00020999,2]
[334192025,1722821445315,-154.82195475,0.00020999,2]
[334192027,1722821445325,-266.5152618,0.00020999,2]
[334192029,1722821445335,-2049.115438,0.00021,2]
[334192031,1722821445346,-7870.78160382,0.00021002,3]
[334192033,1722821445355,-336.12056396,0.00021011,2]
[334192035,1722821445366,-522.26012374,0.00021011,2]
[334192037,1722821445376,-30000.0,0.00021012,2]
[334192039,1722821445385,-356.45346079,0.00021048,2]
[334192041,1722821445395,-356.45346079,0.00021048,2]
[334192043,1722821445404,-363.89619293,0.00021177,2]
[334192045,1722821445414,-151.0,0.0002121,2]
[334192047,1722821445423,-151.0,0.0002121,2]
[334192049,1722821445438,-5880.88262027,0.00021213,2]
[334192050,1722821445449,-200.0,0.00021226,2]
[334192052,1722821445458,-363.89619293,0.0002143,2]
[334192054,1722821445467,-8260.73619174,0.00021492,3]
[334192056,1722821445477,-7870.78160382,0.00021531,3]
[334192058,1722821445487,-361.83787098,0.00021589,2]
[334192060,1722821445496,-157.80579925,0.00021589,2]
[334192062,1722821445506,-307.16853799,0.00021589,2]
[334192064,1722821445515,-154.83742071,0.00021591,2]
[334192066,1722821445525,-5880.88262027,0.00021593,2]
[334192068,1722821445535,-153.9111627,0.000216,2]
[334192070,1722821445545,-175.80177293,0.00021632,2]
[334192071,1722821445554,-2137.28,0.00021641,2]
[334192073,1722821445564,-2137.28,0.00021641,2]
[334192075,1722821445574,-2137.28,0.00021641,2]
[334192077,1722821445584,-309.47390132,0.00021642,2]
[334192079,1722821445593,-154.83301275,0.00021642,2]
[334192081,1722821445603,-363.89619293,0.00021699,2]
[334192083,1722821445615,-5880.88262027,0.00021764,2]
[334192085,1722821445625,-189.30041933,0.00021805,2]
[334192087,1722821445636,-189.30041933,0.00021805,2]
[334192089,1722821445649,-151.0,0.00021807,2]
[334192091,1722821445659,-151.0,0.00021807,2]
[334192093,1722821445668,-1087.52759045,0.000219,2]
[334192095,1722821445680,-2137.28,0.00021905,2]
[334192097,1722821445697,-2137.28,0.00021905,2]
[334192099,1722821445707,-2137.28,0.00021905,2]
[334192101,1722821445716,-2137.28,0.00021905,2]
[334192103,1722821445727,-2137.28,0.00021905,2]
[334192105,1722821445736,-151.0,0.00021905,2]
[334192116,1722821445834,-198.17604,0.00021905,2]
[334192118,1722821445845,-428.659822,0.00021905,2]